bitfinex-derivatives/quotes_SOLF0:USTF0_20250614
["timestamp","ask_amount","ask_price","bid_price","bid_amount"]
[1749862608258,6.81631701,147.76,147.74,41.5854]
[1749862608755,6.81631701,147.76,147.74,34.82]
[1749862610763,0.05171701,147.76,147.74,41.5854]
[1749862611556,6.81631701,147.76,147.74,41.5854]
[1749862612658,0.05171701,147.76,147.74,34.82]
[1749862613062,0.05171701,147.76,147.74,41.5853]
[1749862614461,0.05171701,147.76,147.75,6.765]
[1749862614663,3.99960951,147.8,147.74,34.82]
[1749862614852,3.99960951,147.8,147.74,37.0945]
[1749862615152,6.7635,147.79,147.76,6.7643]
[1749862615354,6.7635,147.79,147.74,37.0945]
[1749862615862,0.04434688,147.78,147.76,6.7642]
[1749862617863,0.04434688,147.78,147.75,0.04776693]
[1749862618361,6.7615,147.83,147.75,4.04175528]
[1749862618564,6.7615,147.83,147.75,3.99398835]
[1749862619159,10.75498835,147.84,147.77,3.99398835]
[1749862619362,0.05171893,147.82,147.79,0.05161379]
[1749862619765,38.81398835,147.88,147.79,4.04560214]
[1749862619964,3.99398835,147.88,147.79,3.99398835]
[1749862620368,6.7602,147.86,147.82,6.7615]
[1749862620566,6.7602,147.86,147.82,41.5815]
[1749862620756,3.99398835,147.86,147.82,41.5815]
[1749862621062,10.75488835,147.84,147.83,0.04804826]
[1749862629969,6.7627,147.8,147.79,34.82]
[1749862631467,6.81029944,147.81,147.79,34.82]
[1749862631978,0.04789944,147.81,147.79,34.82]
[1749862632464,6.81009944,147.81,147.79,34.82]
[1749862632663,0.04789944,147.81,147.79,34.82]
[1749862632871,34.82,147.87,147.81,6.7619]
[1749862632872,6.7607,147.85,147.81,6.7619]
[1749862633173,3.99278218,147.87,147.81,6.7619]
[1749862633576,6.7608,147.85,147.81,6.7619]
[1749862633873,0.04507712,147.84,147.82,0.05074752]
[1749862634075,0.04507712,147.84,147.82,6.81244752]
[1749862635576,6.80597712,147.84,147.82,0.05074752]
[1749862637975,3.99278218,147.83,147.79,34.82]
[1749862638179,3.99278218,147.81,147.79,34.82]
[1749862638581,6.7627,147.8,147.79,34.82]
[1749862638785,3.99278218,147.81,147.76,34.8]
[1749862639172,3.99278218,147.79,147.77,0.04914303]
[1749862639379,0.04913684,147.8,147.77,0.04914303]
[1749862639576,4.04191902,147.8,147.77,0.04914303]
[1749862639779,6.7636,147.78,147.77,0.04914303]
[1749862639980,4.04191902,147.8,147.77,0.04914303]
[1749862640288,0.04913684,147.8,147.78,6.7635]
[1749862642390,0.04913684,147.8,147.77,0.04914303]
[1749862642583,3.99278218,147.78,147.77,0.04914303]
[1749862643691,10.75638218,147.78,147.77,0.04914303]
[1749862644393,6.765,147.75,147.73,34.8]
[1749862645386,6.81446064,147.75,147.73,34.84502225]
[1749862649098,6.7654,147.74,147.73,34.84502225]
[1749862653692,6.7654,147.74,147.73,0.04502225]
[1749862654391,6.81456064,147.75,147.73,0.04502225]
[1749862655393,6.7654,147.74,147.73,0.04502225]
[1749862656701,6.81466064,147.75,147.73,0.04502225]
[1749862657000,0.04946064,147.75,147.73,0.04502225]
[1749862658599,6.7654,147.74,147.73,0.04502225]
[1749862659599,6.81456064,147.75,147.73,0.04502225]
[1749862659805,0.04946064,147.75,147.74,6.7654]
[1749862660206,0.04946064,147.75,147.74,41.5454]
[1749862667804,6.7633,147.79,147.75,6.7646]
[1749862668003,38.79278218,147.82,147.74,40.96998218]
[1749862668202,38.79278218,147.82,147.75,4.4192]
[1749862668203,3.99278218,147.82,147.75,4.4192]
[1749862668402,6.7629,147.8,147.77,6.7641]
[1749862668901,0.04493906,147.8,147.77,0.04818541]
[1749862669306,6.7634,147.79,147.77,0.04818541]
[1749862670203,0.04493906,147.8,147.77,0.04818541]
[1749862670711,6.80783906,147.8,147.77,6.81198541]
[1749862673508,6.7633,147.79,147.77,0.04818541]
[1749862674506,6.80783906,147.8,147.77,6.81218541]
[1749862675311,6.7634,147.79,147.77,0.04818541]
[1749862677109,6.80783906,147.8,147.77,0.04818541]
[1749862677816,6.80783906,147.8,147.77,6.81208541]
[1749862678311,6.7632,147.79,147.77,0.04818541]
[1749862680712,6.7632,147.79,147.77,6.81218541]
[1749862681011,6.7632,147.79,147.77,0.04818541]
[1749862682316,0.04493906,147.8,147.77,0.04818541]
[1749862682620,6.7636,147.78,147.77,0.04818541]
[1749862686325,6.7649,147.76,147.74,34.78]
[1749862686918,6.7642,147.77,147.74,34.78]
[1749862687318,0.04696557,147.77,147.74,34.83165208]
[1749862687826,6.21336129,147.86,147.8,6.7627]
[1749862688019,10.20891431,147.87,147.8,41.5227]
[1749862688218,6.7611,147.84,147.8,34.76]
[1749862688419,6.7611,147.84,147.8,41.5225]
[1749862688826,0.05027739,147.83,147.81,0.04563016]
[1749862689427,0.05027739,147.83,147.81,6.80783016]
[1749862690923,43.04448172,147.9,147.81,4.03725714]
[1749862690924,6.21336129,147.9,147.81,4.03725714]
[1749862691127,3.99162698,147.89,147.81,3.99162698]
[1749862692132,0.0450675,147.86,147.84,0.04918181]
[1749862699135,6.8050675,147.86,147.84,0.04918181]
[1749862699434,3.99115444,147.85,147.84,0.04918181]
[1749862699634,3.99115444,147.85,147.8,34.76]
[1749862700326,6.7617,147.83,147.8,34.76]
[1749862700527,3.99115444,147.85,147.8,34.76]
[1749862700729,0.05165444,147.84,147.81,0.04833642]
[1749862700928,6.7616,147.83,147.81,0.04833642]
[1749862701329,0.05165444,147.84,147.81,0.04833642]
[1749862701538,3.99479677,147.82,147.76,34.74]
[1749862701732,4.04645121,147.84,147.76,34.74]
[1749862701733,3.99479677,147.8,147.76,34.74]
[1749862701938,3.99479677,147.84,147.73,41.5058]
[1749862701939,3.99479677,147.78,147.73,41.5058]
[1749862702238,6.7643,147.77,147.73,34.74]
[1749862702430,3.99479677,147.78,147.73,41.5057]
[1749862702638,0.04313942,147.77,147.74,0.05026637]
[1749862703737,6.7646,147.76,147.74,0.05026637]
[1749862703938,0.04313942,147.77,147.74,0.05026637]
[1749862704438,6.7646,147.76,147.74,0.05026637]
[1749862705441,6.80733942,147.77,147.74,0.05026637]
[1749862705638,0.04313942,147.77,147.74,0.05026637]
[1749862706832,0.04313942,147.77,147.75,6.7645]
[1749862708239,0.04313942,147.77,147.76,6.7645]
[1749862708741,0.04313942,147.77,147.75,6.7648]
[1749862709543,0.04313942,147.77,147.76,6.7645]
[1749862709841,0.04313942,147.77,147.74,0.05026637]
[1749862710244,6.80733942,147.77,147.74,6.81546637]
[1749862710437,0.04313942,147.77,147.74,0.05026637]
[1749862711642,0.04313942,147.77,147.75,6.7646]
[1749862711936,0.04313942,147.77,147.74,0.05026637]
[1749862712145,0.04313942,147.77,147.76,6.7645]
[1749862718354,3.9955884,147.83,147.77,6.7637]
[1749862718645,3.9955884,147.83,147.77,41.4837]
[1749862718849,6.7625,147.81,147.77,41.4837]
[1749862719348,0.0462218,147.8,147.78,0.048706]
[1749862720141,0.0462218,147.8,147.78,6.812306]
[1749862720945,6.8089218,147.8,147.78,0.048706]
[1749862722563,6.7631,147.79,147.78,0.048706]
[1749862723355,10.7586884,147.79,147.78,0.048706]
[1749862726263,6.7631,147.79,147.78,0.048706]
[1749862729268,10.7586884,147.79,147.78,0.048706]
[1749862729568,6.764,147.77,147.76,34.72]
[1749862731467,6.7638,147.78,147.76,34.72]
[1749862731669,0.0462218,147.8,147.76,34.72]
[1749862732667,6.7637,147.78,147.76,34.72]
[1749862733169,6.7632,147.79,147.76,41.4845]
[1749862736470,6.7636,147.78,147.76,41.4845]
[1749862736671,3.9955884,147.79,147.76,34.72]
[1749862737171,6.764,147.77,147.76,34.72]
[1749862742769,6.7636,147.78,147.76,34.72]
[1749862744369,0.0462218,147.8,147.76,34.72]
[1749862745364,4.0418102,147.8,147.76,34.72]
[1749862745976,6.7638,147.78,147.76,34.72]
[1749862746773,6.764,147.77,147.76,34.72]
[1749862747480,6.7645,147.76,147.75,0.0430978]
[1749862750573,10.7600884,147.76,147.75,0.0430978]
[1749862755685,6.7645,147.76,147.75,0.0430978]
[1749862758880,6.7654,147.74,147.73,34.68]
[1749862759083,3.9955884,147.75,147.7,36.9312]
[1749862759279,3.9955884,147.75,147.7,43.6982]
[1749862759483,6.7662,147.73,147.7,43.6982]
[1749862759884,6.81077661,147.73,147.7,43.74341444]
[1749862760086,0.04457661,147.73,147.7,36.97641444]
[1749862760284,0.04457661,147.73,147.7,40.97200284]
[1749862760477,0.04457661,147.73,147.72,6.7663]
[1749862767993,3.9955884,147.78,147.74,6.7653]
[1749862768192,3.9955884,147.78,147.74,41.4453]
[1749862768695,6.7643,147.77,147.74,41.4453]
[1749862768895,6.80930306,147.77,147.74,41.49658249]
[1749862769090,6.80930306,147.77,147.74,34.73128249]
[1749862769091,0.04500306,147.77,147.74,34.73128249]
[1749862769491,6.7647,147.76,147.74,34.73128249]
[1749862770289,6.765,147.75,147.74,34.73128249]
[1749862770787,0.04500306,147.77,147.74,34.73128249]
[1749862772698,6.765,147.75,147.74,34.73128249]
[1749862774000,6.7646,147.76,147.74,34.73128249]
[1749862778508,0.04500306,147.77,147.74,34.73128249]
[1749862778695,13.5179,147.89,147.75,3.99454503]
[1749862778696,6.21336129,147.83,147.75,3.99454503]
[1749862778899,6.7626,147.81,147.75,140.92554503]
[1749862779401,9.31754502,147.82,147.79,6.7627]
[1749862779703,0.04843974,147.82,147.79,2.60361824]
[1749862780101,0.04843974,147.82,147.8,6.7624]
[1749862780608,0.04843974,147.82,147.8,9.31754642]
[1749862781205,0.04843974,147.82,147.8,6.7624]
[1749862781901,0.04843974,147.82,147.79,6.81137182]
[1749862782595,0.04843974,147.82,147.8,6.7626]
[1749862785310,6.81043974,147.82,147.79,6.81157182]
[1749862786908,0.04843974,147.82,147.79,6.81157182]
[1749862787413,6.81023974,147.82,147.79,6.81157182]
[1749862790612,6.81023974,147.82,147.8,34.64]
[1749862792812,0.04843974,147.82,147.8,34.64]
[1749862794319,0.04843974,147.82,147.8,41.4025]
[1749862794514,6.81023974,147.82,147.8,34.64]
[1749862799829,6.7622,147.81,147.8,34.64]
[1749862800323,0.04843974,147.82,147.8,34.64]
[1749862801234,6.7622,147.81,147.8,34.64]
[1749862802335,6.81033974,147.82,147.8,34.64]
[1749862803233,9.31811138,147.81,147.8,34.64]
[1749862806941,0.04843974,147.82,147.8,34.64]
[1749862807135,2.60435112,147.82,147.8,34.64]
[1749862807333,2.60435112,147.82,147.8,41.4026]
[1749862807639,0.04843974,147.82,147.8,41.4026]
[1749862809143,6.81023974,147.82,147.8,34.64]
[1749862810442,0.04843974,147.82,147.8,34.64]
[1749862811438,0.04843974,147.82,147.8,41.4025]
[1749862811738,0.04843974,147.82,147.8,34.64]
[1749862812244,0.04843974,147.82,147.8,41.4026]
[1749862812635,0.04843974,147.82,147.8,34.64]
[1749862812837,0.04843974,147.82,147.8,41.4027]
[1749862813946,0.04843974,147.82,147.8,34.64]
[1749862814141,2.60343916,147.82,147.8,34.64]
[1749862814644,9.36543916,147.82,147.8,34.64]
[1749862816042,6.7622,147.81,147.8,34.64]
[1749862816245,6.7622,147.81,147.79,0.04847182]
[1749862816442,6.7622,147.81,147.79,34.62847182]
[1749862817549,6.7627,147.8,147.79,34.62847182]
[1749862818048,9.31769942,147.8,147.79,34.62847182]
[1749862820752,2.55499942,147.8,147.79,34.62847182]
[1749862821253,9.31769942,147.8,147.79,34.62847182]
[1749862823151,2.55499942,147.8,147.79,34.62847182]
[1749862823353,9.31739942,147.81,147.79,34.62847182]
[1749862824649,0.04843974,147.82,147.79,34.62847182]
[1749862824840,2.55499942,147.8,147.79,0.04847182]
[1749862825045,7.11720523,147.8,147.79,0.04847182]
[1749862825246,7.11697444,147.8,147.79,0.04847182]
[1749862825544,13.87971137,147.8,147.79,0.04847182]
[1749862825850,13.87949284,147.8,147.79,0.04847182]
[1749862826045,9.31769942,147.8,147.79,0.04847182]
[1749862826252,13.87986986,147.8,147.79,0.04847182]
[1749862826651,13.87971887,147.8,147.79,0.04847182]
[1749862826851,13.87972097,147.8,147.79,0.04847182]
[1749862827051,13.87972307,147.8,147.79,0.04847182]
[1749862827252,13.87972097,147.8,147.79,0.04847182]
[1749862827451,13.87975261,147.8,147.79,0.04847182]
[1749862828049,13.87974417,147.8,147.79,0.04847182]
[1749862828350,9.31769942,147.8,147.79,0.04847182]
[1749862828852,6.764,147.77,147.76,34.58]
[1749862829049,2.55499942,147.77,147.73,34.6]
[1749862829246,2.55499942,147.75,147.73,34.6]
[1749862829649,2.60699201,147.75,147.73,34.64823083]
[1749862830653,9.37199201,147.75,147.73,34.64823083]
[1749862831251,6.81699259,147.75,147.73,34.64823083]
[1749862831446,6.7654,147.74,147.73,34.64823083]
[1749862835652,6.7654,147.74,147.73,0.04823083]
[1749862839664,10.7632025,147.74,147.73,0.04823083]
[1749862841355,0.05199259,147.75,147.73,0.04823083]
[1749862842276,6.81729259,147.75,147.73,0.04823083]
[1749862842460,0.05199259,147.75,147.73,0.04823083]
[1749862843364,6.7654,147.74,147.73,0.04823083]
[1749862848855,6.7662,147.73,147.7,34.56]
[1749862849259,6.7662,147.73,147.7,41.3272]
[1749862849878,6.7662,147.73,147.7,41.37268645]
[1749862850862,3.99610799,147.74,147.7,34.60548645]
[1749862851466,6.7662,147.73,147.7,34.60548645]
[1749862851968,6.7656,147.74,147.7,41.37268645]
[1749862852271,0.05199259,147.75,147.7,34.60548645]
[1749862852565,0.05199259,147.75,147.71,4.4739]
[1749862852770,0.05199259,147.75,147.71,6.7272]
[1749862852973,3.99610799,147.78,147.71,6.7272]
[1749862853170,6.7643,147.77,147.73,6.7655]
[1749862853872,0.04633694,147.76,147.74,0.04338084]
[1749862854571,0.04633694,147.76,147.74,6.80878084]
[1749862854773,0.04633694,147.76,147.74,41.36878084]
[1749862857969,6.81083694,147.76,147.74,34.60338084]
[1749862858673,0.04633694,147.76,147.74,41.36878084]
[1749862859471,6.81093694,147.76,147.74,34.60338084]
[1749862859772,0.04633694,147.76,147.74,34.60338084]
[1749862860677,6.765,147.75,147.74,34.60338084]
[1749862861775,6.765,147.75,147.74,0.04338084]
[1749862867277,6.81093694,147.76,147.74,0.04338084]
[1749862868277,6.765,147.75,147.74,0.04338084]
[1749862868874,6.81093694,147.76,147.74,0.04338084]
[1749862870582,6.765,147.75,147.74,0.04338084]
[1749862872283,0.04633694,147.76,147.74,0.04338084]
[1749862872877,3.99631876,147.79,147.74,0.04338084]
[1749862872878,6.7637,147.78,147.75,34.54]
[1749862873581,3.99631876,147.79,147.75,34.54]
[1749862873582,10.75961876,147.79,147.75,34.54]
[1749862874085,0.05047156,147.78,147.75,34.54]
[1749862874783,0.05047156,147.78,147.76,6.7642]
[1749862875172,0.05047156,147.78,147.75,34.54]
[1749862875579,6.81417156,147.78,147.75,41.3048]
[1749862878391,0.05047156,147.78,147.75,34.54]
[1749862878686,0.05047156,147.78,147.74,0.04338084]
[1749862878687,3.99631876,147.77,147.74,0.04338084]
[1749862879885,6.765,147.75,147.74,0.04338084]
[1749862880789,10.98294619,147.75,147.69,39.134]
[1749862880980,6.21336129,147.77,147.69,39.134]
[1749862880981,3.99920842,147.73,147.69,39.134]
[1749862881684,0.04591834,147.72,147.7,0.05066711]
[1749862883689,6.81231834,147.72,147.7,0.05066711]
[1749862887382,6.7668,147.71,147.7,0.05066711]
[1749862894689,0.04591834,147.72,147.7,0.05066711]
[1749862895405,6.81251834,147.72,147.7,0.05066711]
[1749862899906,6.81251834,147.72,147.7,6.81786711]
[1749862900302,6.81251834,147.72,147.7,0.05066711]
[1749862909308,6.7668,147.71,147.7,0.05066711]
[1749862911216,9.32628623,147.71,147.7,0.05066711]
[1749862911717,2.55948623,147.71,147.7,0.05066711]
[1749862912623,2.60540457,147.72,147.7,6.81786711]
[1749862912822,2.55948623,147.75,147.71,2.55948623]
[1749862913222,6.765,147.75,147.72,6.7659]
[1749862913614,3.99660029,147.78,147.7,4.4311]
[1749862913818,0.04780437,147.75,147.73,0.05188307]
[1749862914623,0.04780437,147.75,147.74,6.7651]
[1749862920328,0.04780437,147.75,147.73,0.05188307]
[1749862920925,6.81300437,147.75,147.73,0.05188307]
[1749862921424,6.7669,147.71,147.68,15.12525616]
[1749862921727,3.99660029,147.73,147.68,34.76]
[1749862922321,6.7674,147.7,147.68,34.76]
[1749862922623,6.81466333,147.7,147.68,34.81155512]
[1749862926129,6.7677,147.69,147.68,34.81155512]
[1749862931834,6.81476333,147.7,147.68,34.81155512]
[1749862933234,6.7677,147.69,147.68,34.81155512]
[1749862940342,10.76430029,147.69,147.68,0.05155512]
[1749862941043,14.77320058,147.69,147.62,37.30915737]
[1749862941232,3.99660029,147.64,147.62,37.30915737]
[1749862941628,3.99660029,147.66,147.62,37.30915737]
[1749862941829,6.81960885,147.65,147.63,0.04776863]
[1749862942043,0.04980885,147.65,147.63,0.04776863]
[1749862946647,6.81940885,147.65,147.63,0.04776863]
[1749862947446,0.04980885,147.65,147.63,0.04776863]
[1749862947741,0.04980885,147.65,147.63,6.81816863]
[1749862948340,3.99660029,147.7,147.63,0.04776863]
[1749862948549,3.99660029,147.7,147.62,37.30915737]
[1749862948748,6.7684,147.68,147.64,6.7698]
[1749862948949,6.7684,147.68,147.62,37.30915737]
[1749862949444,0.0454955,147.66,147.64,0.05154902]
[1749862949957,0.0454955,147.66,147.64,6.82144902]
[1749862950753,6.8145955,147.66,147.64,0.05154902]
[1749862951242,0.0454955,147.66,147.64,6.82154902]
[1749862951644,0.0454955,147.66,147.64,0.05154902]
[1749862953653,0.0454955,147.66,147.64,6.82154902]
[1749862954159,6.8146955,147.66,147.64,0.05154902]
[1749862959553,0.0454955,147.66,147.64,6.82154902]
[1749862959755,0.0454955,147.66,147.64,0.05154902]
[1749862960357,6.8145955,147.66,147.64,6.82144902]
[1749862960657,0.0454955,147.66,147.64,6.82144902]
[1749862963550,0.0454955,147.66,147.65,6.7695]
[1749862963751,0.0454955,147.66,147.64,0.05154902]
[1749862964148,10.77182637,147.65,147.64,0.05154902]
[1749862965366,9.33150156,147.65,147.64,0.05154902]
[1749862967263,10.77292216,147.65,147.64,0.05154902]
[1749862968262,10.77302217,147.65,147.64,0.05154902]
[1749862969657,6.7705,147.63,147.62,2.74915737]
[1749862969962,10.77402217,147.63,147.62,2.74915737]
[1749862978669,6.7705,147.63,147.62,2.74915737]
[1749862987476,9.33308288,147.63,147.62,2.74915737]
[1749862988872,0.0454955,147.66,147.62,37.30915737]
[1749862989177,2.60807838,147.66,147.62,37.30915737]
[1749862989778,9.37747838,147.66,147.62,44.07965737]
[1749862990181,6.7696,147.65,147.62,44.07965737]
[1749862991485,6.7701,147.64,147.62,37.30915737]
[1749862993785,6.7697,147.65,147.62,44.08005737]
[1749862995992,6.8147955,147.66,147.63,6.7702]
[1749863002098,6.7697,147.65,147.62,44.07985737]
[1749863002799,6.7697,147.65,147.63,6.7704]
[1749863005002,6.8147955,147.66,147.63,6.7704]
[1749863008007,6.7696,147.65,147.62,44.07985737]
[1749863011504,6.7696,147.65,147.63,6.7704]
[1749863012108,6.8147955,147.66,147.63,6.7704]
[1749863013308,2.56123135,147.65,147.63,6.7704]
[1749863014205,0.0454955,147.66,147.63,2.56123135]
[1749863014413,6.27604731,147.73,147.65,2.56123135]
[1749863014614,2.56123135,147.7,147.66,37.08123135]
[1749863014808,9.32893135,147.69,147.67,34.52]
[1749863015412,9.32943135,147.68,147.67,34.56962082]
[1749863016205,2.56123135,147.68,147.67,34.56962082]
[1749863019917,0.04721392,147.69,147.67,41.33812082]
[1749863020119,2.60844527,147.69,147.67,34.56962082]
[1749863020518,9.37644527,147.69,147.67,34.56962082]
[1749863020816,2.60844527,147.69,147.67,34.56962082]
[1749863021819,9.37624527,147.69,147.67,34.56962082]
[1749863024321,6.81501392,147.69,147.67,34.56962082]
[1749863024518,9.37624527,147.69,147.67,34.56962082]
[1749863025623,6.81501392,147.69,147.67,34.56962082]
[1749863025922,9.37624527,147.69,147.67,34.56962082]
[1749863029629,9.32943135,147.68,147.67,0.04962082]
[1749863029834,9.32943135,147.68,147.64,34.48]
[1749863029835,2.56123135,147.68,147.62,2.74915737]
[1749863030034,2.56123135,147.64,147.62,2.74915737]
[1749863030234,2.56123135,147.63,147.62,2.74915737]
[1749863030426,6.7702,147.64,147.62,2.74915737]
[1749863030626,9.33143135,147.64,147.62,2.74915737]
[1749863030828,9.3816256,147.64,147.62,2.7936332]
[1749863031226,6.7705,147.63,147.62,2.7936332]
[1749863031436,9.33173135,147.63,147.62,2.7936332]
[1749863038343,2.56123135,147.63,147.58,34.48]
[1749863038550,2.56123135,147.59,147.58,34.48]
[1749863038732,40.75604731,147.67,147.58,34.48]
[1749863039039,9.33323135,147.6,147.58,34.48]
[1749863039234,9.38416603,147.6,147.58,34.52588732]
[1749863040040,6.82293468,147.6,147.58,34.52588732]
[1749863040336,9.38416603,147.6,147.58,34.52588732]
[1749863040938,9.33353135,147.59,147.58,34.52588732]
[1749863041132,6.7723,147.59,147.58,34.52588732]
[1749863041333,9.33353135,147.59,147.58,34.52588732]
[1749863041632,6.7723,147.59,147.58,34.52588732]
[1749863041932,9.33353135,147.59,147.58,34.52588732]
[1749863043445,6.7723,147.59,147.58,34.52588732]
[1749863043745,9.33353135,147.59,147.58,34.52588732]
[1749863044134,6.7723,147.59,147.58,34.52588732]
[1749863044337,9.33353135,147.59,147.58,34.52588732]
[1749863044942,2.56123135,147.59,147.58,34.52588732]
[1749863046241,9.33353135,147.59,147.58,34.52588732]
[1749863047243,6.7723,147.59,147.58,34.52588732]
[1749863047549,9.33353135,147.59,147.58,34.52588732]
[1749863050146,6.7723,147.59,147.58,34.52588732]
[1749863050342,9.33353135,147.59,147.58,34.52588732]
[1749863051043,9.38406603,147.6,147.58,34.52588732]
[1749863051544,2.56123135,147.59,147.58,34.52588732]
[1749863052140,0.05093468,147.6,147.58,34.52588732]
[1749863052444,2.61216603,147.6,147.58,34.52588732]
[1749863052848,2.56123135,147.59,147.58,34.52588732]
[1749863053745,9.33353135,147.59,147.58,34.52588732]
[1749863055748,9.33353135,147.59,147.58,0.04588732]
[1749863057346,0.05093468,147.6,147.58,0.04588732]
[1749863057551,2.56123135,147.59,147.58,0.04588732]
[1749863058049,9.33353135,147.59,147.58,0.04588732]
[1749863063547,2.56123135,147.59,147.5,1.17922131]
[1749863063746,34.46,147.63,147.51,34.46]
[1749863064051,2.56123135,147.54,147.52,6.7752]
[1749863064244,6.7741,147.55,147.52,6.7752]
[1749863064446,6.9324,147.62,147.51,34.46]
[1749863064753,2.56123135,147.55,147.53,6.7748]
[1749863065351,2.56123135,147.55,147.54,6.7746]
[1749863067059,2.56123135,147.55,147.51,37.02123135]
[1749863067060,2.56123135,147.55,147.53,6.7749]
[1749863067755,2.56123135,147.55,147.54,6.7746]
[1749863068455,6.82154365,147.56,147.54,6.7746]
[1749863068651,2.56123135,147.55,147.54,6.7746]
[1749863069755,2.56123135,147.55,147.53,6.7748]
[1749863070156,2.56123135,147.55,147.51,37.02123135]
[1749863070358,2.56123135,147.55,147.54,6.7746]
[1749863070962,2.56123135,147.55,147.53,6.7747]
[1749863071259,2.56123135,147.54,147.51,34.46]
[1749863071459,2.56123135,147.52,147.51,34.46]
[1749863071658,2.56123135,147.52,147.41,8.35715616]
[1749863071659,2.56760893,147.52,147.41,8.35715616]
[1749863071853,0.05167377,147.48,147.46,6.778]
[1749863072048,0.0504088,147.48,147.47,2.56665665]
[1749863072348,9.34165665,147.53,147.47,37.04665665]
[1749863072556,2.56665665,147.52,147.49,6.7768]
[1749863073362,2.56665665,147.5,147.49,0.0504088]
[1749863074553,2.56661354,147.5,147.49,0.0504088]
[1749863075361,9.34301354,147.5,147.49,0.0504088]
[1749863077763,9.34271354,147.51,147.49,0.0504088]
[1749863077962,2.56661354,147.51,147.49,0.0504088]
[1749863078263,2.61349852,147.52,147.49,0.0504088]
[1749863078462,2.61349852,147.52,147.5,6.7763]
[1749863079063,2.56661354,147.51,147.49,6.8271088]
[1749863079361,2.56661354,147.5,147.49,0.0504088]
[1749863079964,9.34301354,147.5,147.49,0.0504088]
[1749863088875,6.7761,147.51,147.49,0.0504088]
[1749863089174,2.56661354,147.5,147.49,0.0504088]
[1749863090166,9.34301354,147.5,147.49,0.0504088]
[1749863093582,6.7783,147.46,147.44,34.48]
[1749863093774,9.34491354,147.46,147.44,34.48]
[1749863094181,9.34531354,147.45,147.44,34.48]
[1749863095378,6.7796,147.43,147.38,2.74915737]
[1749863095566,0.04843499,147.42,147.39,39.1724]
[1749863095772,0.04505282,147.42,147.39,43.18598002]
[1749863095974,4.01358002,147.48,147.39,11.4724]
[1749863096169,2.3232,147.52,147.38,2.74915737]
[1749863096170,4.01573007,147.44,147.38,2.74915737]
[1749863096370,6.7814,147.39,147.38,2.74915737]
[1749863097072,6.7819,147.38,147.37,0.04505282]
[1749863097375,10.79763007,147.38,147.37,0.04505282]
[1749863097580,6.7815,147.39,147.37,0.04505282]
[1749863097785,4.01737203,147.39,147.37,0.04505282]
[1749863098279,0.04313027,147.4,147.37,0.04505282]
[1749863098685,6.82423027,147.4,147.37,0.04505282]
[1749863098884,0.04313027,147.4,147.37,0.04505282]
[1749863099386,0.04313027,147.4,147.38,34.48]
[1749863100479,6.82423027,147.4,147.38,34.48]
[1749863100681,0.04313027,147.4,147.38,34.48]
[1749863101288,4.0605023,147.4,147.38,34.48]
[1749863101488,10.8416023,147.4,147.38,34.48]
[1749863101885,4.0605023,147.4,147.38,34.48]
[1749863102082,6.82423027,147.4,147.38,34.48]
[1749863102896,0.04313027,147.4,147.38,34.48]
[1749863103696,6.82423027,147.4,147.38,34.48]
[1749863105191,0.04313027,147.4,147.38,34.48]
[1749863105591,6.7819,147.39,147.37,0.04505282]
[1749863105798,4.01737203,147.38,147.37,0.04505282]
[1749863105994,4.01737203,147.38,147.27,89.26384101]
[1749863106295,4.01737203,147.31,147.22,36.24]
[1749863106497,4.01737203,147.31,147.24,6.7882]
[1749863106697,6.7864,147.29,147.24,6.7882]
[1749863106894,4.3722,147.39,147.23,40.25737203]
[1749863107096,4.06154164,147.32,147.25,4.01737203]
[1749863107601,10.84654164,147.32,147.25,4.01737203]
[1749863108203,6.82916961,147.32,147.27,6.7865]
[1749863108400,6.82916961,147.32,147.28,36.26]
[1749863108699,0.04416961,147.32,147.28,36.26]
[1749863108895,0.04416961,147.32,147.29,4.5675]
[1749863109305,0.04416961,147.32,147.31,6.7851]
[1749863114804,0.04416961,147.32,147.29,4.5675]
[1749863114805,0.04416961,147.32,147.29,11.3535]
[1749863115210,0.04416961,147.32,147.29,4.5675]
[1749863115909,6.82896961,147.32,147.29,4.5675]
[1749863116408,0.04416961,147.32,147.29,4.5675]
[1749863117011,0.04416961,147.32,147.3,6.7855]
[1749863117205,0.04416961,147.32,147.19,4.02084969]
[1749863117409,6.7863,147.29,147.21,4.02084969]
[1749863117607,0.04352423,147.26,147.23,6.7884]
[1749863117901,0.04352423,147.26,147.23,4.02084969]